lending/lending_fUSD_20250516
["ID","MTS","AMOUNT","RATE_DAILY","PERIOD"]
[361287341,1747425042499,-400.0,0.00016438,2]
[361287342,1747425042510,-400.0,0.00016438,2]
[361287343,1747425042519,-472.01,0.00016438,2]
[361287344,1747425042529,-601.7,0.00016438,2]
[361287345,1747425042538,-400.0,0.00016438,2]
[361287346,1747425042547,-495.55,0.00016438,2]
[361287347,1747425042556,-400.0,0.00016438,2]
[361287348,1747425042566,-496.37,0.00016438,2]
[361287349,1747425042575,-564.97,0.00016438,2]
[361287350,1747425042584,-400.0,0.00016438,2]
[361287351,1747425042594,-151.0,0.00016438,2]
[361287352,1747425042603,-400.0,0.00016438,2]
[361287353,1747425042612,-151.0,0.00016438,2]
[361287354,1747425042621,-757.18,0.00016438,2]
[361287355,1747425042631,-430.36,0.00016438,2]
[361287356,1747425042640,-400.0,0.00016438,2]
[361287357,1747425042651,-400.0,0.00016438,2]
[361287358,1747425042660,-400.0,0.00016438,2]
[361287359,1747425042669,-400.0,0.00016438,2]
[361287360,1747425042678,-400.0,0.00016438,2]
[361287361,1747425042687,-400.0,0.00016438,2]
[361287362,1747425042696,-400.0,0.00016438,2]
[361287363,1747425042705,-400.0,0.00016438,2]
[361287364,1747425042714,-400.0,0.00016438,2]
[361287365,1747425042724,-400.0,0.00016438,2]
[361287366,1747425042733,-549.8,0.00016438,2]
[361287367,1747425042742,-400.0,0.00016438,2]
[361287368,1747425042751,-419.81,0.00016438,2]
[361287369,1747425042760,-400.0,0.00016438,2]
[361287370,1747425042769,-400.0,0.00016438,2]
[361287371,1747425042778,-400.0,0.00016438,2]
[361287372,1747425042787,-1719.56,0.00016438,2]
[361287373,1747425042796,-400.0,0.00016438,2]
[361287374,1747425042805,-821.56,0.00016438,2]
[361287375,1747425042814,-462.66,0.00016438,2]
[361287376,1747425042823,-400.0,0.00016438,2]
[361287377,1747425042831,-400.0,0.00016438,2]
[361287378,1747425042841,-456.37,0.00016438,2]
[361287379,1747425042853,-529.05,0.00016438,2]
[361287380,1747425042862,-400.0,0.00016438,2]
[361287381,1747425042872,-1035.29,0.00016438,2]
[361287382,1747425042881,-400.0,0.00016438,2]
[361287383,1747425042890,-892.64,0.00016438,2]
[361287384,1747425042899,-989.15,0.00016438,2]
[361287385,1747425042907,-1675.57,0.00016438,2]
[361287386,1747425042917,-415.97,0.00016438,2]
[361287387,1747425042926,-451.97,0.00016438,2]
[361287388,1747425042935,-494.73,0.00016438,2]
[361287389,1747425042944,-400.0,0.00016438,2]
[361287390,1747425042953,-497.4,0.00016438,2]
[361287391,1747425042962,-400.0,0.00016438,2]
[361287392,1747425042971,-400.0,0.00016438,2]
[361287393,1747425042980,-580.25,0.00016438,2]
[361287394,1747425042989,-400.0,0.00016438,2]
[361287395,1747425042998,-521.67,0.00016438,2]
[361287396,1747425043008,-612.07,0.00016438,2]
[361287397,1747425043017,-400.0,0.00016438,2]
[361287398,1747425043027,-292.41469568,0.00016438,2]
[361287399,1747425043036,-665.21,0.00016438,2]
[361287400,1747425043045,-400.0,0.00016438,2]
[361287401,1747425043055,-400.0,0.00016438,2]
[361287402,1747425043064,-400.0,0.00016438,2]
[361287403,1747425043073,-496.27,0.00016438,2]
[361287404,1747425043083,-751.22,0.00016438,2]
[361287405,1747425043092,-1123.35,0.00016438,2]
[361287406,1747425043102,-400.0,0.00016438,2]
[361287407,1747425043111,-400.0,0.00016438,2]
[361287408,1747425043121,-450.0,0.00016438,2]
[361287409,1747425043130,-400.36471452,0.00016438,2]
[361287410,1747425043139,-696.44,0.00016438,2]
[361287411,1747425043149,-638.35,0.00016438,2]
[361287412,1747425043158,-851.26,0.00016438,2]
[361287413,1747425043168,-400.0,0.00016438,2]
[361287414,1747425043180,-400.0,0.00016438,2]
[361287415,1747425043189,-400.0,0.00016438,2]
[361287416,1747425043199,-400.0,0.00016438,2]
[361287417,1747425043208,-764.32,0.00016438,2]
[361287418,1747425043220,-407.55408304,0.00016438,2]
[361287419,1747425043229,-952.36,0.00016438,2]
[361287420,1747425043238,-400.0,0.00016438,2]
[361287421,1747425043248,-400.0,0.00016438,2]
[361287422,1747425043257,-501.83443135,0.00016438,2]
[361287424,1747425043267,-647.87,0.00016438,2]
[361287425,1747425043276,-772.92,0.00016438,2]
[361287426,1747425043285,-400.0,0.00016438,2]
[361287427,1747425043294,-1464.14,0.00016438,2]
[361287429,1747425043303,-400.0,0.00016438,2]
[361287430,1747425043312,-400.0,0.00016438,2]
[361287431,1747425043321,-705.24,0.00016438,2]
[361287432,1747425043330,-400.0,0.00016438,2]
[361287433,1747425043339,-400.0,0.00016438,2]
[361287434,1747425043348,-615.29,0.00016438,2]
[361287435,1747425043358,-506.89,0.00016438,2]
[361287436,1747425043367,-400.0,0.00016438,2]
[361287437,1747425043376,-151.0,0.00016438,2]
[361287438,1747425043385,-1040.7,0.00016438,2]
[361287439,1747425043394,-660.9,0.00016438,2]
[361287440,1747425043403,-400.0,0.00016438,2]
[361287441,1747425043413,-850.98,0.00016438,2]
[361287442,1747425043422,-400.0,0.00016438,2]
[361287443,1747425043431,-841.85,0.00016438,2]
[361287444,1747425043440,-413.03,0.00016438,2]
[361287445,1747425043449,-592.12,0.00016438,2]
[361287446,1747425043460,-660.71,0.00016438,2]
[361287447,1747425043469,-407.27674148,0.00016438,2]
[361287448,1747425043478,-971.36,0.00016438,2]
[361287449,1747425043487,-605.75,0.00016438,2]
[361287450,1747425043496,-400.0,0.00016438,2]
[361287451,1747425043506,-825.18,0.00016438,2]
[361287452,1747425043515,-425.51,0.00016438,2]
[361287453,1747425043524,-400.0,0.00016438,2]
[361287454,1747425043533,-477.84,0.00016438,2]
[361287455,1747425043543,-400.0,0.00016438,2]
[361287456,1747425043553,-706.92,0.00016438,2]
[361287457,1747425043563,-1394.63,0.00016438,2]
[361287458,1747425043572,-400.0,0.00016438,2]
[361287459,1747425043581,-450.0,0.00016438,2]
[361287460,1747425043591,-603.42,0.00016438,2]
[361287461,1747425043601,-400.0,0.00016438,2]
[361287462,1747425043610,-1560.64,0.00016438,2]
[361287463,1747425043619,-400.0,0.00016438,2]
[361287464,1747425043628,-802.32,0.00016438,2]
[361287465,1747425043638,-500.0,0.00016438,2]
[361287466,1747425043647,-500.0,0.00016438,2]
[361287467,1747425043656,-500.0,0.00016438,2]
[361287468,1747425043665,-500.0,0.00016438,2]
[361287469,1747425043675,-500.0,0.00016438,2]
[361287470,1747425043684,-532.28,0.00016438,2]
[361287471,1747425043693,-400.0,0.00016438,2]
[361287472,1747425043702,-1179.86,0.00016438,2]
[361287473,1747425043711,-1686.87,0.00016438,2]
[361287474,1747425043720,-669.19,0.00016438,2]
[361287475,1747425043730,-678.96,0.00016438,2]
[361287476,1747425043739,-1138.17,0.00016438,2]
[361287477,1747425043748,-500.0,0.00016438,2]
[361287478,1747425043757,-551.96,0.00016438,2]
[361287479,1747425043766,-562.74,0.00016438,2]
[361287481,1747425043775,-625.81,0.00016438,2]
[361287482,1747425043785,-563.72,0.00016438,2]
[361287485,1747425043794,-991.73,0.00016438,2]
[361287486,1747425043803,-777.22,0.00016438,2]
[361287487,1747425043813,-500.0,0.00016438,2]
[361287489,1747425043822,-500.0,0.00016438,2]
[361287491,1747425043831,-470.62,0.00016438,2]
[361287492,1747425043840,-500.0,0.00016438,2]
[361287493,1747425043849,-500.0,0.00016438,2]
[361287494,1747425043859,-597.74,0.00016438,2]
[361287495,1747425043867,-400.0,0.00016438,2]
[361287496,1747425043876,-976.06,0.00016438,2]
[361287497,1747425043885,-228.93266447,0.00016438,2]
[361287498,1747425043894,-400.0,0.00016438,2]
[361287499,1747425043903,-1150.4,0.00016438,2]
[361287500,1747425043912,-400.0,0.00016438,2]
[361287501,1747425043921,-817.18,0.00016438,2]
[361287502,1747425043930,-400.0,0.00016438,2]
[361287503,1747425043939,-498.95,0.00016438,2]
[361287504,1747425043948,-531.54,0.00016438,2]
[361287505,1747425043957,-400.0,0.00016438,2]
[361287506,1747425043966,-549.07,0.00016438,2]
[361287507,1747425043976,-500.0,0.00016438,2]
[361287508,1747425043985,-300.0,0.00016438,2]
[361287509,1747425043994,-400.0,0.00016438,2]
[361287510,1747425044003,-400.0,0.00016438,2]
[361287511,1747425044012,-433.83,0.00016438,2]
[361287512,1747425044021,-400.0,0.00016438,2]
[361287513,1747425044030,-400.0,0.00016438,2]
[361287514,1747425044039,-400.0,0.00016438,2]
[361287515,1747425044048,-400.0,0.00016438,2]
[361287516,1747425044057,-1198.55,0.00016438,2]
[361287517,1747425044066,-641.87,0.00016438,2]
[361287518,1747425044075,-1202.18,0.00016438,2]
[361287519,1747425044084,-966.96,0.00016438,2]
[361287520,1747425044094,-187.44093984,0.00016438,2]
[361287521,1747425044103,-824.08,0.00016438,2]
[361287522,1747425044112,-400.0,0.00016438,2]
[361287523,1747425044121,-400.0,0.00016438,2]
[361287524,1747425044130,-159.75050052,0.00016438,2]
[361287525,1747425044139,-627.69,0.00016438,2]
[361287526,1747425044148,-151.0,0.00016438,2]
[361287527,1747425044157,-400.0,0.00016438,2]
[361287528,1747425044166,-403.62415114,0.00016438,2]
[361287529,1747425044179,-1471.7,0.00016438,2]
[361287530,1747425044188,-400.0,0.00016438,2]
[361287531,1747425044198,-803.62,0.00016438,2]
[361287532,1747425044207,-400.0,0.00016438,2]
[361287533,1747425044217,-412.5,0.00016438,2]
[361287534,1747425044226,-809.83,0.00016438,2]
[361287535,1747425044236,-474.33,0.00016438,2]
[361287536,1747425044245,-400.0,0.00016438,2]
[361287537,1747425044255,-643.74,0.00016438,2]
[361287538,1747425044265,-1478.2,0.00016438,2]
[361287539,1747425044274,-515.4,0.00016438,2]
[361287540,1747425044283,-439.0,0.00016438,2]
[361287541,1747425044292,-450.0,0.00016438,2]
[361287542,1747425044302,-1223.05,0.00016438,2]
[361287543,1747425044311,-783.68,0.00016438,2]
[361287544,1747425044321,-400.0,0.00016438,2]
[361287545,1747425044330,-400.0,0.00016438,2]
[361287546,1747425044339,-768.82,0.00016438,2]
[361287547,1747425044349,-400.0,0.00016438,2]
[361287548,1747425044358,-400.0,0.00016438,2]
[361287549,1747425044368,-861.73,0.00016438,2]
[361287550,1747425044377,-400.0,0.00016438,2]
[361287551,1747425044387,-610.58,0.00016438,2]
[361287552,1747425044396,-400.0,0.00016438,2]
[361287553,1747425044406,-1107.03,0.00016438,2]
[361287554,1747425044415,-400.0,0.00016438,2]
[361287555,1747425044425,-170.03785473,0.00016438,2]
[361287556,1747425044436,-1491.66,0.00016438,2]
[361287557,1747425044445,-1076.22,0.00016438,2]
[361287558,1747425044454,-400.0,0.00016438,2]
[361287559,1747425044464,-480.55,0.00016438,2]
[361287560,1747425044473,-400.0,0.00016438,2]
[361287561,1747425044483,-400.0,0.00016438,2]
[361287562,1747425044492,-637.53,0.00016438,2]
[361287563,1747425044502,-173.32884914,0.00016438,2]
[361287564,1747425044511,-400.0,0.00016438,2]
[361287565,1747425044520,-703.21,0.00016438,2]
[361287566,1747425044530,-832.79,0.00016438,2]
[361287567,1747425044539,-455.80534159,0.00016438,2]
[361287568,1747425044548,-400.0,0.00016438,2]
[361287569,1747425044557,-603.28,0.00016438,2]
[361287570,1747425044567,-151.0,0.00016438,2]
[361287571,1747425044576,-400.0,0.00016438,2]
[361287572,1747425044585,-500.0,0.00016438,2]
[361287573,1747425044594,-151.0,0.00016438,2]
[361287574,1747425044604,-400.0,0.00016438,2]
[361287575,1747425044613,-400.0,0.00016438,2]
[361287576,1747425044622,-917.22,0.00016438,2]
[361287577,1747425044631,-370.6547608,0.00016438,2]
[361287578,1747425044641,-2329.43,0.00016438,2]
[361287579,1747425044650,-430.98,0.00016438,2]
[361287580,1747425044659,-493.2,0.00016438,2]
[361287581,1747425044668,-400.0,0.00016438,2]
[361287582,1747425044677,-203.02207592,0.00016438,2]
[361287583,1747425044687,-400.0,0.00016438,2]
[361287584,1747425044696,-400.0,0.00016438,2]
[361287585,1747425044706,-400.0,0.00016438,2]
[361287586,1747425044716,-452.07,0.00016438,2]
[361287587,1747425044726,-450.0,0.00016438,2]
[361287588,1747425044736,-400.0,0.00016438,2]
[361287589,1747425044745,-151.0,0.00016438,2]
[361287590,1747425044754,-151.0,0.00016438,2]
[361287591,1747425044763,-629.77,0.00016438,2]
[361287592,1747425044773,-460.05,0.00016438,2]
[361287593,1747425044782,-235.470308,0.00016438,2]
[361287594,1747425044791,-400.0,0.00016438,2]
[361287595,1747425044801,-1008.5,0.00016438,2]
[361287596,1747425044810,-400.0,0.00016438,2]
[361287597,1747425044820,-565.33,0.00016438,2]
[361287598,1747425044829,-545.22,0.00016438,2]
[361287599,1747425044839,-400.0,0.00016438,2]
[361287600,1747425044848,-328.67799575,0.00016438,2]
[361287601,1747425044857,-512.83,0.00016438,2]
[361287602,1747425044866,-235.470308,0.00016438,2]
[361287603,1747425044876,-400.0,0.00016438,2]
[361287604,1747425044886,-1002.17,0.00016438,2]
[361287605,1747425044895,-433.5,0.00016438,2]
[361287606,1747425044904,-1206.29,0.00016438,2]
[361287607,1747425044914,-946.76,0.00016438,2]
[361287608,1747425044923,-400.0,0.00016438,2]
[361287609,1747425044932,-563.93,0.00016438,2]
[361287610,1747425044942,-400.0,0.00016438,2]
[361287611,1747425044952,-848.58,0.00016438,2]
[361287612,1747425044961,-2033.28,0.00016438,2]
[361287613,1747425044970,-400.0,0.00016438,2]
[361287614,1747425044980,-495.91,0.00016438,2]
[361287615,1747425044990,-170.83297618,0.00016438,2]
[361287616,1747425044999,-1163.48,0.00016438,2]
[361287617,1747425045008,-439.48,0.00016438,2]
[361287618,1747425045018,-400.0,0.00016438,2]
[361287619,1747425045027,-400.0,0.00016438,2]
[361287620,1747425045036,-519.87,0.00016438,2]
[361287621,1747425045045,-151.0,0.00016438,2]
[361287622,1747425045055,-151.0,0.00016438,2]
[361287623,1747425045064,-400.0,0.00016438,2]
[361287624,1747425045073,-151.0,0.00016438,2]
[361287625,1747425045083,-291.570234,0.00016438,2]
[361287626,1747425045093,-400.0,0.00016438,2]
[361287627,1747425045102,-300.0274457,0.00016438,2]
[361287628,1747425045111,-400.0,0.00016438,2]
[361287629,1747425045120,-428.87,0.00016438,2]
[361287630,1747425045130,-994.07,0.00016438,2]
[361287631,1747425045139,-400.0,0.00016438,2]
[361287632,1747425045148,-400.0,0.00016438,2]
[361287633,1747425045157,-400.0,0.00016438,2]
[361287634,1747425045167,-455.38,0.00016438,2]
[361287635,1747425045179,-1473.57,0.00016438,2]
[361287636,1747425045189,-400.0,0.00016438,2]
[361287637,1747425045198,-438.1,0.00016438,2]
[361287638,1747425045208,-290.215807,0.00016438,2]
[361287639,1747425045218,-407.47,0.00016438,2]
[361287640,1747425045227,-151.0,0.00016438,2]
[361287641,1747425045237,-763.79,0.00016438,2]
[361287642,1747425045247,-400.0,0.00016438,2]
[361287643,1747425045256,-504.56,0.00016438,2]
[361287644,1747425045266,-400.0,0.00016438,2]
[361287645,1747425045275,-553.54,0.00016438,2]
[361287646,1747425045285,-155.206544,0.00016438,2]
[361287647,1747425045295,-1481.52,0.00016438,2]
[361287648,1747425045304,-151.0,0.00016438,2]
[361287649,1747425045313,-151.0,0.00016438,2]
[361287650,1747425045322,-400.0,0.00016438,2]
[361287651,1747425045332,-400.0,0.00016438,2]
[361287652,1747425045342,-400.0,0.00016438,2]
[361287653,1747425045351,-408.17143434,0.00016438,2]
[361287654,1747425045361,-400.58,0.00016438,2]
[361287655,1747425045370,-400.0,0.00016438,2]
[361287656,1747425045379,-400.0,0.00016438,2]
[361287657,1747425045389,-400.0,0.00016438,2]
[361287658,1747425045398,-450.0,0.00016438,2]
[361287659,1747425045408,-400.0,0.00016438,2]
[361287660,1747425045418,-899.56,0.00016438,2]
[361287661,1747425045427,-400.0,0.00016438,2]
[361287662,1747425045436,-400.0,0.00016438,2]
[361287663,1747425045446,-905.35,0.00016438,2]
[361287664,1747425045455,-400.0,0.00016438,2]
[361287665,1747425045464,-470.68,0.00016438,2]
[361287666,1747425045474,-400.0,0.00016438,2]
[361287667,1747425045483,-400.0,0.00016438,2]
[361287668,1747425045493,-400.0,0.00016438,2]
[361287669,1747425045502,-400.0,0.00016438,2]
[361287670,1747425045512,-450.0,0.00016438,2]
[361287671,1747425045521,-400.0,0.00016438,2]
[361287672,1747425045531,-400.0,0.00016438,2]
[361287673,1747425045540,-151.0,0.00016438,2]
[361287674,1747425045550,-151.0,0.00016438,2]
[361287675,1747425045559,-859.88,0.00016438,2]
[361287676,1747425045569,-819.89,0.00016438,2]
[361287677,1747425045578,-516.95,0.00016438,2]
[361287678,1747425045588,-445.76,0.00016438,2]
[361287679,1747425045598,-400.0,0.00016438,2]
[361287680,1747425045608,-400.0,0.00016438,2]
[361287681,1747425045617,-229.12430434,0.00016438,2]
[361287682,1747425045627,-403.84184595,0.00016438,2]
[361287683,1747425045636,-400.0,0.00016438,2]
[361287684,1747425045646,-500.0,0.00016438,2]
[361287685,1747425045656,-500.0,0.00016438,2]
[361287686,1747425045666,-500.0,0.00016438,2]
[361287687,1747425045677,-1264.43,0.00016438,2]
[361287688,1747425045687,-400.0,0.00016438,2]
[361287689,1747425045697,-450.0,0.00016438,2]
[361287690,1747425045707,-493.17,0.00016438,2]
[361287691,1747425045718,-829.84,0.00016438,2]
[361287692,1747425045727,-450.0,0.00016438,2]
[361287693,1747425045737,-830.68,0.00016438,2]
[361287694,1747425045747,-450.0,0.00016438,2]
[361287695,1747425045756,-2024.71,0.00016438,2]
[361287696,1747425045766,-400.0,0.00016438,2]
[361287697,1747425045776,-420.0559395,0.00016438,2]
[361287698,1747425045938,-256.91766043,0.00016438,2]
[361287699,1747425045964,-450.0,0.00016438,2]
[361287700,1747425045975,-400.0,0.00016438,2]
[361287701,1747425045985,-400.0,0.00016438,2]
[361287702,1747425045995,-761.69,0.00016438,2]
[361287703,1747425046005,-400.0,0.00016438,2]
[361287704,1747425046015,-400.0,0.00016438,2]
[361287705,1747425046025,-633.93,0.00016438,2]
[361287706,1747425046036,-400.0,0.00016438,2]
[361287707,1747425046045,-958.48,0.00016438,2]
[361287708,1747425046054,-151.0,0.00016438,2]
[361287709,1747425046064,-151.0,0.00016438,2]
[361287710,1747425046074,-400.0,0.00016438,2]
[361287711,1747425046084,-400.0,0.00016438,2]
[361287712,1747425046097,-493.63,0.00016438,2]
[361287713,1747425046106,-681.42,0.00016438,2]
[361287714,1747425046116,-1126.48,0.00016438,2]
[361287715,1747425046126,-401.63035676,0.00016438,2]
[361287716,1747425046135,-413.47,0.00016438,2]
[361287717,1747425046145,-455.5036297,0.00016438,2]
[361287718,1747425046155,-1418.24,0.00016438,2]
[361287719,1747425046165,-400.0,0.00016438,2]
[361287720,1747425046178,-489.94,0.00016438,2]
[361287721,1747425046189,-400.0,0.00016438,2]
[361287722,1747425046199,-400.0,0.00016438,2]
[361287723,1747425046209,-400.0,0.00016438,2]
[361287724,1747425046219,-400.0,0.00016438,2]
[361287725,1747425046228,-400.0,0.00016438,2]
[361287726,1747425046237,-400.0,0.00016438,2]
[361287727,1747425046247,-400.0,0.00016438,2]
[361287728,1747425046257,-400.0,0.00016438,2]
[361287729,1747425046266,-400.0,0.00016438,2]
[361287730,1747425046275,-699.38,0.00016438,2]
[361287731,1747425046285,-460.49,0.00016438,2]
[361287732,1747425046294,-400.0,0.00016438,2]
[361287733,1747425046305,-400.0,0.00016438,2]
[361287734,1747425046318,-400.0,0.00016438,2]
[361287735,1747425046327,-400.0,0.00016438,2]
[361287736,1747425046336,-285.91667866,0.00016438,2]
[361287737,1747425046347,-485.99,0.00016438,2]
[361287738,1747425046356,-912.43,0.00016438,2]
[361287739,1747425046366,-766.45,0.00016438,2]
[361287740,1747425046375,-400.0,0.00016438,2]
[361287741,1747425046385,-164.8712068,0.00016438,2]
[361287742,1747425046395,-400.0,0.00016438,2]
[361287743,1747425046404,-450.0,0.00016438,2]
[361287744,1747425046413,-509.9941519,0.00016438,2]
[361287745,1747425046423,-450.0,0.00016438,2]
[361287746,1747425046432,-494.56256052,0.00016438,2]
[361287747,1747425046442,-400.0,0.00016438,2]
[361287748,1747425046451,-400.0,0.00016438,2]
[361287749,1747425046460,-1358.31,0.00016438,2]
[361287750,1747425046470,-450.0,0.00016438,2]
[361287751,1747425046479,-1336.09,0.00016438,2]
[361287752,1747425046489,-981.52,0.00016438,2]
[361287753,1747425046499,-504.72,0.00016438,2]
[361287754,1747425046508,-161.87051353,0.00016438,2]
[361287755,1747425046517,-400.0,0.00016438,2]
[361287756,1747425046527,-400.0,0.00016438,2]
[361287757,1747425046536,-400.0,0.00016438,2]
[361287758,1747425046546,-400.0,0.00016438,2]
[361287759,1747425046555,-1677.18,0.00016438,2]
[361287760,1747425046564,-400.0,0.00016438,2]
[361287761,1747425046574,-1347.41,0.00016438,2]
[361287762,1747425046583,-3937.04,0.00016438,2]
[361287763,1747425046593,-464.76265421,0.00016438,2]
[361287764,1747425046603,-400.0,0.00016438,2]
[361287765,1747425046612,-400.0,0.00016438,2]
[361287766,1747425046622,-400.0,0.00016438,2]
[361287767,1747425046632,-438.29,0.00016438,2]
[361287768,1747425046642,-400.0,0.00016438,2]
[361287769,1747425046651,-400.0,0.00016438,2]
[361287770,1747425046661,-400.0,0.00016438,2]
[361287771,1747425046671,-450.77,0.00016438,2]
[361287772,1747425046680,-400.0,0.00016438,2]
[361287773,1747425046690,-400.0,0.00016438,2]
[361287774,1747425046699,-400.0,0.00016438,2]
[361287775,1747425046708,-400.0,0.00016438,2]
[361287776,1747425046718,-400.0,0.00016438,2]
[361287777,1747425046727,-803.72,0.00016438,2]
[361287778,1747425046737,-1321.08,0.00016438,2]
[361287779,1747425046746,-400.0,0.00016438,2]
[361287780,1747425046755,-400.0,0.00016438,2]
[361287781,1747425046765,-450.0,0.00016438,2]
[361287782,1747425046774,-649.25,0.00016438,2]
[361287783,1747425046784,-401.17,0.00016438,2]
[361287784,1747425046793,-450.0,0.00016438,2]
[361287785,1747425046803,-400.0,0.00016438,2]
[361287786,1747425046811,-570.91,0.00016438,2]
[361287787,1747425046821,-732.2,0.00016438,2]
[361287788,1747425046830,-651.99,0.00016438,2]
[361287789,1747425046840,-756.66,0.00016438,2]
[361287790,1747425046849,-656.73,0.00016438,2]
[361287791,1747425046859,-400.0,0.00016438,2]
[361287792,1747425046868,-400.0,0.00016438,2]
[361287794,1747425046878,-1667.47,0.00016438,2]
[361287796,1747425046887,-3334.38,0.00016438,2]
[361287798,1747425046897,-400.0,0.00016438,2]
[361287800,1747425046906,-746.82,0.00016438,2]
[361287802,1747425046915,-400.0,0.00016438,2]
[361287804,1747425046925,-400.0,0.00016438,2]
[361287806,1747425046935,-265.24569272,0.00016438,2]
[361287807,1747425046945,-1059.13,0.00016438,2]
[361287808,1747425046954,-1055.76,0.00016438,2]
[361287810,1747425046964,-400.0,0.00016438,2]
[361287812,1747425046973,-400.0,0.00016438,2]
[361287814,1747425046986,-1441.14,0.00016438,2]
[361287816,1747425046996,-458.91483997,0.00016438,2]
[361287818,1747425047005,-400.0,0.00016438,2]
[361287820,1747425047015,-613.81,0.00016438,2]
[361287822,1747425047025,-400.0,0.00016438,2]
[361287823,1747425047035,-51803.8117151,0.00016438,2]
[361287824,1747425047658,-402.10540879,0.00016438,2]
[361287825,1747425047733,-10086.45287611,0.00016438,2]
[361287826,1747425047743,-192.657767,0.00016438,2]
[361287827,1747425047752,-400.0,0.00016438,2]
[361287828,1747425047762,-400.0,0.00016438,2]
[361287829,1747425047771,-859.08,0.00016438,2]
[361287830,1747425047780,-400.0,0.00016438,2]
[361287831,1747425047790,-564.19,0.00016438,2]
[361287832,1747425047799,-192.657767,0.00016438,2]
[361287833,1747425047809,-1561.68,0.00016438,2]
[361287834,1747425047819,-23200.35,0.00016438,2]
[361287835,1747425047828,-151.0,0.00016438,2]
[361287836,1747425047837,-450.0,0.00016438,2]
[361287837,1747425047847,-400.0,0.00016438,2]
[361287838,1747425047857,-400.0,0.00016438,2]
[361287839,1747425047866,-400.0,0.00016438,2]
[361287840,1747425047876,-2081.52,0.00016438,2]
[361287841,1747425047886,-400.0,0.00016438,2]
[361287842,1747425047895,-5639.65,0.00016438,2]
[361287843,1747425047905,-400.0,0.00016438,2]
[361287844,1747425047915,-419.47226479,0.00016438,2]
[361287845,1747425047925,-667.8,0.00016438,2]
[361287846,1747425047936,-1753.6,0.00016438,2]
[361287847,1747425047947,-400.0,0.00016438,2]
[361287848,1747425047958,-394.88932511,0.00016438,2]
[361287849,1747425048997,-150.0,0.00016397,2]
[361287850,1747425049007,-412.09067489,0.00016438,2]
[361287851,1747425049016,-400.0,0.00016438,2]
[361287852,1747425049025,-400.0,0.00016438,2]
[361287853,1747425049034,-3081.27,0.00016438,2]
[361287854,1747425049044,-400.0,0.00016438,2]
[361287855,1747425049054,-1870.39,0.00016438,2]
[361287856,1747425049063,-537.19,0.00016438,2]
[361287857,1747425049073,-592.54,0.00016438,2]
[361287858,1747425049082,-616.75,0.00016438,2]
[361287859,1747425049093,-1613.43,0.00016438,2]
[361287860,1747425049104,-400.0,0.00016438,2]
[361287861,1747425049113,-524.59,0.00016438,2]